[Event "Early-Titled-Tuesday-Blitz-January-30-2024"]
[Site "Chess.com"]
[Date "2024.01.30"]
[Round "6"]
[White "whitemirrorninja"]
[Black "EdmundPlayer"]
[Result "0-1"]
[WhiteElo "2479"]
[BlackElo "2292"]
[TimeControl "180+1"]
[EndTime "9:10:22 PST"]
[Termination "EdmundPlayer won by checkmate"]

1. e4 {[%clk 0:03:00.9]} 1... c6 {[%clk 0:02:58.6]} 2. d3 {[%clk 0:02:51.8]}
2... e5 {[%clk 0:02:52.4]} 3. Nf3 {[%clk 0:02:51.4]} 3... Nf6 {[%clk 0:02:41.2]}
4. g3 {[%clk 0:02:48.6]} 4... d5 {[%clk 0:02:32.3]} 5. exd5 {[%clk 0:02:46.7]}
5... Qxd5 {[%clk 0:02:27.7]} 6. Bg2 {[%clk 0:02:46.9]} 6... Bg4 {[%clk
0:02:20.6]} 7. h3 {[%clk 0:02:40.7]} 7... Bxf3 {[%clk 0:02:10.4]} 8. Qxf3 {[%clk
0:02:35.4]} 8... Nbd7 {[%clk 0:02:06.3]} 9. Qxd5 {[%clk 0:02:34.7]} 9... Nxd5
{[%clk 0:02:04.5]} 10. O-O {[%clk 0:02:33.6]} 10... Nb4 {[%clk 0:01:38.5]} 11.
Na3 {[%clk 0:02:32.1]} 11... Bc5 {[%clk 0:01:33.7]} 12. Rd1 {[%clk 0:02:11.7]}
12... O-O {[%clk 0:01:28.7]} 13. c3 {[%clk 0:02:12.1]} 13... Nd5 {[%clk
0:01:27]} 14. Nc2 {[%clk 0:02:11.4]} 14... Rfe8 {[%clk 0:01:25.4]} 15. Bd2
{[%clk 0:02:00.2]} 15... a5 {[%clk 0:01:23.5]} 16. Re1 {[%clk 0:01:56.2]} 16...
a4 {[%clk 0:01:21.4]} 17. a3 {[%clk 0:01:50.6]} 17... Bb6 {[%clk 0:01:20]} 18.
c4 {[%clk 0:01:43]} 18... Nc7 {[%clk 0:01:14.4]} 19. Bc3 {[%clk 0:01:40.4]}
19... f6 {[%clk 0:01:10.6]} 20. Rad1 {[%clk 0:01:38.4]} 20... Ne6 {[%clk
0:01:00]} 21. Re2 {[%clk 0:01:23.7]} 21... Rad8 {[%clk 0:00:58.7]} 22. Bf1
{[%clk 0:01:10.4]} 22... Nd4 {[%clk 0:00:48]} 23. Bxd4 {[%clk 0:01:06.5]} 23...
Bxd4 {[%clk 0:00:46.4]} 24. Nxd4 {[%clk 0:01:04.6]} 24... exd4 {[%clk
0:00:46.4]} 25. Rde1 {[%clk 0:01:05.3]} 25... Kf7 {[%clk 0:00:46]} 26. Kg2
{[%clk 0:00:59.8]} 26... Nc5 {[%clk 0:00:31.7]} 27. Rxe8 {[%clk 0:00:58]} 27...
Rxe8 {[%clk 0:00:32.2]} 28. Rd1 {[%clk 0:00:50.2]} 28... Ke6 {[%clk 0:00:29.8]}
29. h4 {[%clk 0:00:49.6]} 29... Kd6 {[%clk 0:00:28.4]} 30. Kf3 {[%clk
0:00:47.7]} 30... h6 {[%clk 0:00:23.4]} 31. Kg4 {[%clk 0:00:45.6]} 31... Re5
{[%clk 0:00:22.9]} 32. Rd2 {[%clk 0:00:30.7]} 32... Re1 {[%clk 0:00:22]} 33. Be2
{[%clk 0:00:28.6]} 33... Nb3 {[%clk 0:00:19.9]} 34. Rc2 {[%clk 0:00:26]} 34...
Na1 {[%clk 0:00:18.2]} 35. Rd2 {[%clk 0:00:26.2]} 35... Nb3 {[%clk 0:00:17.6]}
36. Rc2 {[%clk 0:00:24.1]} 36... Nc1 {[%clk 0:00:18]} 37. Kf3 {[%clk 0:00:18.9]}
37... Ke5 {[%clk 0:00:14.9]} 38. Rd2 {[%clk 0:00:17.6]} 38... h5 {[%clk
0:00:12.6]} 39. Bd1 {[%clk 0:00:07.6]} 39... Kf5 {[%clk 0:00:11.1]} 40. Bxa4
{[%clk 0:00:07.4]} 40... Na2 {[%clk 0:00:08.7]} 41. Bb3 {[%clk 0:00:06.6]} 41...
Nc1 {[%clk 0:00:08.3]} 42. Rd1 {[%clk 0:00:05.2]} 42... Rxd1 {[%clk 0:00:07.4]}
43. Bxd1 {[%clk 0:00:06.1]} 43... Ke5 {[%clk 0:00:07]} 44. Bc2 {[%clk
0:00:06.2]} 44... Na2 {[%clk 0:00:05.9]} 45. Kg2 {[%clk 0:00:05.1]} 45... Kf5
{[%clk 0:00:05.9]} 46. Kf1 {[%clk 0:00:05.3]} 46... Kg4 {[%clk 0:00:06.2]} 47.
Kg2 {[%clk 0:00:05.6]} 47... Nc1 {[%clk 0:00:05]} 48. f3+ {[%clk 0:00:06.3]}
48... Kf5 {[%clk 0:00:05.3]} 49. Kf2 {[%clk 0:00:07.1]} 49... Na2 {[%clk
0:00:05.4]} 50. Ke1 {[%clk 0:00:07.1]} 50... g5 {[%clk 0:00:06]} 51. hxg5 {[%clk
0:00:05]} 51... fxg5 {[%clk 0:00:06.9]} 52. Kd2 {[%clk 0:00:05.6]} 52... h4
{[%clk 0:00:07.5]} 53. gxh4 {[%clk 0:00:04.4]} 53... gxh4 {[%clk 0:00:08.4]} 54.
Ke2 {[%clk 0:00:03.7]} 54... h3 {[%clk 0:00:08.4]} 55. Kf2 {[%clk 0:00:04.3]}
55... Kf4 {[%clk 0:00:09.3]} 56. Bb3 {[%clk 0:00:03.8]} 56... Nc1 {[%clk
0:00:08.9]} 57. Ba4 {[%clk 0:00:04.4]} 57... Nxd3+ {[%clk 0:00:07.5]} 58. Kg1
{[%clk 0:00:05.2]} 58... Nxb2 {[%clk 0:00:08]} 59. Bb3 {[%clk 0:00:05.5]} 59...
Kxf3 {[%clk 0:00:07.5]} 60. c5 {[%clk 0:00:05.2]} 60... d3 {[%clk 0:00:07.7]}
61. Kh2 {[%clk 0:00:05.3]} 61... d2 {[%clk 0:00:08.2]} 62. Kxh3 {[%clk
0:00:05.8]} 62... d1=Q {[%clk 0:00:08.8]} 63. Bxd1+ {[%clk 0:00:06.1]} 63...
Nxd1 {[%clk 0:00:09.7]} 64. Kh4 {[%clk 0:00:06.3]} 64... Nc3 {[%clk 0:00:10]}
65. Kg5 {[%clk 0:00:07]} 65... Ke4 {[%clk 0:00:10.9]} 66. Kf6 {[%clk 0:00:07.5]}
66... Kd5 {[%clk 0:00:11.8]} 67. Ke7 {[%clk 0:00:08]} 67... Kxc5 {[%clk
0:00:12.7]} 68. Kd7 {[%clk 0:00:08.8]} 68... Na4 {[%clk 0:00:13]} 69. Kc7 {[%clk
0:00:09.5]} 69... b5 {[%clk 0:00:13.7]} 70. Kb7 {[%clk 0:00:09.6]} 70... Nc3
{[%clk 0:00:14.2]} 71. Ka6 {[%clk 0:00:09.7]} 71... Nb1 {[%clk 0:00:14.5]} 72.
a4 {[%clk 0:00:10.3]} 72... bxa4 {[%clk 0:00:14.1]} 73. Ka5 {[%clk 0:00:11]}
73... a3 {[%clk 0:00:14.8]} 74. Ka4 {[%clk 0:00:11.9]} 74... a2 {[%clk
0:00:14.4]} 75. Kb3 {[%clk 0:00:12.8]} 75... a1=Q {[%clk 0:00:13.7]} 76. Kc2
{[%clk 0:00:13.7]} 76... Na3+ {[%clk 0:00:12.4]} 77. Kb3 {[%clk 0:00:14]} 77...
Qb1+ {[%clk 0:00:10.4]} 78. Kc3 {[%clk 0:00:14.4]} 78... Qb4+ {[%clk 0:00:09.8]}
79. Kd3 {[%clk 0:00:15.1]} 79... Qc4+ {[%clk 0:00:09.7]} 80. Kd2 {[%clk
0:00:15.5]} 80... Qd4+ {[%clk 0:00:09.2]} 81. Kc1 {[%clk 0:00:15.6]} 81... Qf2
{[%clk 0:00:06.7]} 82. Kd1 {[%clk 0:00:15.4]} 82... Qc2+ {[%clk 0:00:07.1]} 83.
Ke1 {[%clk 0:00:15.7]} 83... Nc4 {[%clk 0:00:07.3]} 84. Kf1 {[%clk 0:00:16.6]}
84... Qd2 {[%clk 0:00:07.2]} 85. Kg1 {[%clk 0:00:16.8]} 85... Ne3 {[%clk
0:00:06.6]} 86. Kh1 {[%clk 0:00:15.5]} 86... Qg2# {[%clk 0:00:07.5]} 0-1

[Event "Early-Titled-Tuesday-Blitz-January-30-2024"]
[Site "Chess.com"]
[Date "2024.01.30"]
[Round "6"]
[White "FLYD"]
[Black "Kostukov_Alex"]
[Result "1/2-1/2"]
[WhiteElo "2051"]
[BlackElo "2302"]
[TimeControl "180+1"]
[EndTime "9:10:25 PST"]
[Termination "Game drawn by agreement"]

1. e4 {[%clk 0:03:00.9]} 1... c5 {[%clk 0:02:57.2]} 2. Nf3 {[%clk 0:03:00.9]}
2... g6 {[%clk 0:02:57.7]} 3. d4 {[%clk 0:03:00.3]} 3... cxd4 {[%clk 0:02:58.6]}
4. Nxd4 {[%clk 0:03:00.7]} 4... Bg7 {[%clk 0:02:59.2]} 5. Nc3 {[%clk 0:03:01.1]}
5... Nc6 {[%clk 0:02:59.9]} 6. Be3 {[%clk 0:02:58.8]} 6... Nf6 {[%clk
0:02:59.8]} 7. Nxc6 {[%clk 0:02:58.8]} 7... bxc6 {[%clk 0:02:57.3]} 8. e5 {[%clk
0:02:59.3]} 8... Ng8 {[%clk 0:02:55.8]} 9. Bd4 {[%clk 0:02:57.9]} 9... f6 {[%clk
0:02:56.1]} 10. f4 {[%clk 0:02:51.6]} 10... fxe5 {[%clk 0:02:55.1]} 11. fxe5
{[%clk 0:02:48.9]} 11... Qa5 {[%clk 0:02:54.7]} 12. e6 {[%clk 0:02:39.7]} 12...
Nf6 {[%clk 0:02:45.6]} 13. exd7+ {[%clk 0:02:39.6]} 13... Bxd7 {[%clk
0:02:46.5]} 14. Bc4 {[%clk 0:02:36.1]} 14... Rd8 {[%clk 0:02:28.1]} 15. Qe2
{[%clk 0:02:06.7]} 15... Bg4 {[%clk 0:02:14.5]} 16. Qe3 {[%clk 0:02:00.7]} 16...
Qb4 {[%clk 0:02:01.8]} 17. O-O {[%clk 0:01:29.1]} 17... Qxc4 {[%clk 0:01:57]}
18. Bxf6 {[%clk 0:01:27.5]} 18... Bxf6 {[%clk 0:01:45.3]} 19. Rxf6 {[%clk
0:01:27]} 19... c5 {[%clk 0:01:14.7]} 20. Re1 {[%clk 0:01:21.8]} 20... Qd4
{[%clk 0:01:12]} 21. Rf4 {[%clk 0:01:04.5]} 21... Qxe3+ {[%clk 0:01:06.2]} 22.
Rxe3 {[%clk 0:01:05.4]} 22... Bf5 {[%clk 0:01:06.1]} 23. g4 {[%clk 0:00:24.3]}
23... Bxc2 {[%clk 0:00:58.5]} 24. Re1 {[%clk 0:00:16.2]} 24... Rf8 {[%clk
0:00:52.5]} 25. Rxf8+ {[%clk 0:00:09.2]} 25... Kxf8 {[%clk 0:00:53.4]} 26. Nb5
{[%clk 0:00:09.3]} 26... Rd2 {[%clk 0:00:47]} 27. Nxa7 {[%clk 0:00:05.5]} 27...
Bd3 {[%clk 0:00:42.6]} 28. Nc6 {[%clk 0:00:05.8]} 28... Rxb2 {[%clk 0:00:37.2]}
29. Nxe7 {[%clk 0:00:05.8]} 29... c4 {[%clk 0:00:33.5]} 30. Nd5 {[%clk
0:00:05.5]} 30... Rxa2 {[%clk 0:00:32.2]} 31. Nb4 {[%clk 0:00:05.9]} 31... Rb2
{[%clk 0:00:31.1]} 32. Nxd3 {[%clk 0:00:06.1]} 32... cxd3 {[%clk 0:00:32]} 33.
Rd1 {[%clk 0:00:06.4]} 33... Rb3 {[%clk 0:00:30.5]} 34. Kf2 {[%clk 0:00:06.7]}
34... Kf7 {[%clk 0:00:29]} 35. Ke3 {[%clk 0:00:06]} 35... Rb2 {[%clk 0:00:28.1]}
36. Rxd3 {[%clk 0:00:04.3]} 36... Rxh2 {[%clk 0:00:28.3]} 37. Kf4 {[%clk
0:00:04.8]} 37... Re2 {[%clk 0:00:24.6]} 38. g5 {[%clk 0:00:04.7]} 38... Re7
{[%clk 0:00:24.3]} 39. Kg4 {[%clk 0:00:04.4]} 39... Kg7 {[%clk 0:00:24.8]} 40.
Rf3 {[%clk 0:00:04.5]} 40... Re4+ {[%clk 0:00:24.5]} 41. Kg3 {[%clk 0:00:03.4]}
41... h5 {[%clk 0:00:23]} 42. gxh6+ {[%clk 0:00:03.5]} 42... Kxh6 {[%clk
0:00:23.2]} 43. Kg2 {[%clk 0:00:03.9]} 43... g5 {[%clk 0:00:22.2]} 44. Kg1
{[%clk 0:00:04.4]} 44... Kh5 {[%clk 0:00:21.9]} 45. Ra3 {[%clk 0:00:05]} 45...
Re2 {[%clk 0:00:20.3]} 46. Ra4 {[%clk 0:00:05.2]} 46... Rb2 {[%clk 0:00:19.8]}
47. Ra5 {[%clk 0:00:05.5]} 47... Kg4 {[%clk 0:00:19.5]} 48. Ra4+ {[%clk
0:00:06.1]} 48... Kh3 {[%clk 0:00:18.8]} 49. Ra3+ {[%clk 0:00:06.9]} 49... Kh4
{[%clk 0:00:18.9]} 50. Ra4+ {[%clk 0:00:07.6]} 50... g4 {[%clk 0:00:19.3]} 51.
Ra3 {[%clk 0:00:08.5]} 51... Rc2 {[%clk 0:00:17.3]} 52. Ra4 {[%clk 0:00:08.7]}
52... Kh3 {[%clk 0:00:16.8]} 53. Ra3+ {[%clk 0:00:09]} 53... g3 {[%clk 0:00:17]}
54. Ra1 {[%clk 0:00:09.2]} 54... Rg2+ {[%clk 0:00:15.4]} 55. Kh1 {[%clk
0:00:09.4]} 55... Rc2 {[%clk 0:00:13.8]} 56. Kg1 {[%clk 0:00:09.9]} 56... Rc5
{[%clk 0:00:12.1]} 57. Re1 {[%clk 0:00:08.8]} 57... Rf5 {[%clk 0:00:11.8]} 58.
Rd1 {[%clk 0:00:08.6]} 58... Rf2 {[%clk 0:00:11]} 59. Rc1 {[%clk 0:00:08.7]}
59... Rh2 {[%clk 0:00:11]} 60. Rc3 {[%clk 0:00:07]} 60... Re2 {[%clk 0:00:10.2]}
61. Rc1 {[%clk 0:00:07.2]} 61... Re3 {[%clk 0:00:09.1]} 62. Rd1 {[%clk
0:00:07.5]} 62... Kg4 {[%clk 0:00:09.3]} 63. Ra1 {[%clk 0:00:07.7]} 63... Kf3
{[%clk 0:00:09.8]} 64. Rc1 {[%clk 0:00:07.5]} 64... Rd3 {[%clk 0:00:10.1]} 65.
Rb1 {[%clk 0:00:07.7]} 65... Re3 {[%clk 0:00:08.4]} 66. Rf1+ {[%clk 0:00:07.9]}
66... Kg4 {[%clk 0:00:08.6]} 67. Rb1 {[%clk 0:00:08.8]} 67... Re2 {[%clk
0:00:08.1]} 68. Rb4+ {[%clk 0:00:07]} 68... Kh3 {[%clk 0:00:08.6]} 69. Rb1
{[%clk 0:00:07.7]} 69... Rh2 {[%clk 0:00:08.5]} 70. Rb3 {[%clk 0:00:07]} 70...
Rc2 {[%clk 0:00:07.7]} 71. Rb1 {[%clk 0:00:07.2]} 71... Rc3 {[%clk 0:00:07.7]}
72. Rd1 {[%clk 0:00:07.3]} 72... Rf3 {[%clk 0:00:07.1]} 73. Rb1 {[%clk
0:00:07.6]} 73... g2 {[%clk 0:00:06.2]} 74. Rc1 {[%clk 0:00:06.1]} 74... Re3
{[%clk 0:00:04.8]} 75. Rb1 {[%clk 0:00:06.4]} 75... Rd3 {[%clk 0:00:04.9]} 76.
Rc1 {[%clk 0:00:06.7]} 76... Ra3 {[%clk 0:00:04.9]} 77. Rd1 {[%clk 0:00:07.1]}
77... Rf3 {[%clk 0:00:04.4]} 78. Rc1 {[%clk 0:00:07.6]} 78... Kg3 {[%clk
0:00:04.6]} 79. Rb1 {[%clk 0:00:08]} 79... Kf4 {[%clk 0:00:04.4]} 80. Rb4+
{[%clk 0:00:07.9]} 80... Ke3 {[%clk 0:00:04.7]} 81. Rb3+ {[%clk 0:00:08.4]}
81... Ke2 {[%clk 0:00:05.4]} 82. Rb2+ {[%clk 0:00:07.5]} 82... Ke3 {[%clk
0:00:04.7]} 83. Rxg2 {[%clk 0:00:07.8]} 83... Ke4 {[%clk 0:00:03.6]} 84. Kh2
{[%clk 0:00:07.4]} 1/2-1/2

[Event "Early-Titled-Tuesday-Blitz-January-30-2024"]
[Site "Chess.com"]
[Date "2024.01.30"]
[Round "6"]
[White "snowlord"]
[Black "xakevicius91"]
[Result "1-0"]
[WhiteElo "2856"]
[BlackElo "2577"]
[TimeControl "180+1"]
[EndTime "9:10:29 PST"]
[Termination "snowlord won by resignation"]

1. g3 {[%clk 0:03:00.9]} 1... Nf6 {[%clk 0:02:52.4]} 2. Bg2 {[%clk 0:02:59.5]}
2... e6 {[%clk 0:02:52.8]} 3. e4 {[%clk 0:02:59.1]} 3... d5 {[%clk 0:02:49.7]}
4. e5 {[%clk 0:02:59.6]} 4... Nfd7 {[%clk 0:02:48.9]} 5. f4 {[%clk 0:03:00.3]}
5... c5 {[%clk 0:02:48.8]} 6. Nf3 {[%clk 0:02:57.3]} 6... Nc6 {[%clk 0:02:48.2]}
7. d3 {[%clk 0:02:57.3]} 7... Be7 {[%clk 0:02:48.5]} 8. c4 {[%clk 0:02:57.3]}
8... Nb6 {[%clk 0:02:45.7]} 9. Qe2 {[%clk 0:02:45.9]} 9... dxc4 {[%clk
0:02:41.1]} 10. dxc4 {[%clk 0:02:45.8]} 10... Nd4 {[%clk 0:02:41.6]} 11. Nxd4
{[%clk 0:02:45.5]} 11... Qxd4 {[%clk 0:02:42.5]} 12. Na3 {[%clk 0:02:40.6]}
12... a6 {[%clk 0:02:31.7]} 13. Be3 {[%clk 0:02:37.5]} 13... Qd7 {[%clk
0:02:26.2]} 14. O-O {[%clk 0:02:33.2]} 14... Qc7 {[%clk 0:02:26.2]} 15. Qg4
{[%clk 0:01:48.4]} 15... g6 {[%clk 0:02:25.3]} 16. Be4 {[%clk 0:01:48.4]} 16...
Bd7 {[%clk 0:02:23.9]} 17. Qf3 {[%clk 0:01:48.6]} 17... Rb8 {[%clk 0:02:15.4]}
18. Rad1 {[%clk 0:01:43.1]} 18... Bc6 {[%clk 0:01:57.9]} 19. Bxc6+ {[%clk
0:01:42.1]} 19... bxc6 {[%clk 0:01:58.8]} 20. Bd2 {[%clk 0:00:51.5]} 20... Nd7
{[%clk 0:01:46.8]} 21. b3 {[%clk 0:00:49.5]} 21... O-O {[%clk 0:01:45.3]} 22.
Nb1 {[%clk 0:00:47.3]} 22... f5 {[%clk 0:01:41.9]} 23. exf6 {[%clk 0:00:47]}
23... Bxf6 {[%clk 0:01:42]} 24. Qg4 {[%clk 0:00:45.4]} 24... Bd4+ {[%clk
0:01:41.1]} 25. Kg2 {[%clk 0:00:45.6]} 25... Rbe8 {[%clk 0:01:40.5]} 26. Nc3
{[%clk 0:00:45.4]} 26... Nf6 {[%clk 0:01:40.6]} 27. Qf3 {[%clk 0:00:43.4]} 27...
e5 {[%clk 0:01:35.3]} 28. fxe5 {[%clk 0:00:44.3]} 28... Nd7 {[%clk 0:01:30.2]}
29. Qe4 {[%clk 0:00:37.5]} 29... Rxe5 {[%clk 0:01:26.5]} 30. Rxf8+ {[%clk
0:00:36.9]} 30... Nxf8 {[%clk 0:01:26.1]} 31. Qf3 {[%clk 0:00:32.9]} 31... Rf5
{[%clk 0:01:20.9]} 32. Bf4 {[%clk 0:00:33.3]} 32... Qe7 {[%clk 0:01:03.7]} 33.
Ne2 {[%clk 0:00:29.5]} 33... Ne6 {[%clk 0:00:56.8]} 34. Qg4 {[%clk 0:00:25.5]}
34... Nxf4+ {[%clk 0:00:45]} 35. Nxf4 {[%clk 0:00:26.4]} 35... Qe4+ {[%clk
0:00:42.3]} 36. Qf3 {[%clk 0:00:22]} 36... Qxf3+ {[%clk 0:00:40.1]} 37. Kxf3
{[%clk 0:00:22.9]} 37... g5 {[%clk 0:00:40.6]} 38. Kg4 {[%clk 0:00:22.1]} 38...
Re5 {[%clk 0:00:32]} 39. Nd3 {[%clk 0:00:22.3]} 39... Re2 {[%clk 0:00:28.7]} 40.
b4 {[%clk 0:00:22.4]} 40... cxb4 {[%clk 0:00:22.8]} 41. Nxb4 {[%clk 0:00:23.3]}
41... c5 {[%clk 0:00:23.3]} 42. Nc6 {[%clk 0:00:16.4]} 42... Rxa2 {[%clk
0:00:18.2]} 43. Nxd4 {[%clk 0:00:13.6]} 43... cxd4 {[%clk 0:00:19.1]} 44. Rxd4
{[%clk 0:00:13.9]} 44... Rxh2 {[%clk 0:00:19.7]} 45. Rd7 {[%clk 0:00:07.7]}
45... Rc2 {[%clk 0:00:19.1]} 46. Rc7 {[%clk 0:00:08.3]} 46... h6 {[%clk
0:00:18.7]} 47. Kh5 {[%clk 0:00:08.5]} 47... Rc3 {[%clk 0:00:18]} 48. g4 {[%clk
0:00:07.7]} 48... a5 {[%clk 0:00:15.1]} 49. Kg6 {[%clk 0:00:07.3]} 49... Kf8
{[%clk 0:00:15.3]} 50. Kxh6 {[%clk 0:00:07.6]} 50... a4 {[%clk 0:00:15.8]} 51.
Kxg5 {[%clk 0:00:08.1]} 51... a3 {[%clk 0:00:16.2]} 52. Ra7 {[%clk 0:00:08.5]}
52... Rxc4 {[%clk 0:00:15.7]} 53. Rxa3 {[%clk 0:00:08.6]} 53... Rc6 {[%clk
0:00:15.8]} 54. Ra7 {[%clk 0:00:06.7]} 54... Kg8 {[%clk 0:00:16.1]} 55. Re7
{[%clk 0:00:06.5]} 55... Rb6 {[%clk 0:00:16.4]} 56. Kf5 {[%clk 0:00:06.6]} 56...
Rc6 {[%clk 0:00:16.6]} 57. Re6 {[%clk 0:00:03.8]} 57... Rc1 {[%clk 0:00:11.5]}
58. Kg6 {[%clk 0:00:03.5]} 58... Kf8 {[%clk 0:00:12]} 59. g5 {[%clk 0:00:04.1]}
59... Rg1 {[%clk 0:00:10.3]} 60. Ra6 {[%clk 0:00:04.6]} 60... Rg2 {[%clk
0:00:10]} 61. Ra7 {[%clk 0:00:05.1]} 61... Rg1 {[%clk 0:00:09.6]} 62. Rb7 {[%clk
0:00:05.7]} 62... Rg2 {[%clk 0:00:09.6]} 63. Rb8+ {[%clk 0:00:06.3]} 63... Ke7
{[%clk 0:00:09.5]} 64. Rg8 {[%clk 0:00:06.1]} 64... Rg1 {[%clk 0:00:08.2]} 65.
Kh6 {[%clk 0:00:06.2]} 65... Kf7 {[%clk 0:00:07.6]} 66. Rg7+ {[%clk 0:00:06.8]}
66... Kf8 {[%clk 0:00:07.9]} 67. Ra7 {[%clk 0:00:07.7]} 67... Rg2 {[%clk
0:00:06.8]} 68. Rb7 {[%clk 0:00:07.8]} 68... Rg1 {[%clk 0:00:06.5]} 69. Rc7
{[%clk 0:00:08.4]} 69... Rg2 {[%clk 0:00:06.8]} 70. Kg6 {[%clk 0:00:04.7]} 70...
Rg1 {[%clk 0:00:06.5]} 71. Rd7 {[%clk 0:00:04.5]} 71... Rg2 {[%clk 0:00:06.3]}
72. Rf7+ {[%clk 0:00:05.1]} 72... Ke8 {[%clk 0:00:03.2]} 73. Rf3 {[%clk
0:00:04.3]} 73... Rg1 {[%clk 0:00:02.8]} 74. Kh6 {[%clk 0:00:04.8]} 74... Ke7
{[%clk 0:00:02]} 75. g6 {[%clk 0:00:05]} 75... Rh1+ {[%clk 0:00:02.3]} 76. Kg7
{[%clk 0:00:05.5]} 76... Rg1 {[%clk 0:00:02.9]} 77. Kh7 {[%clk 0:00:06.1]} 77...
Rh1+ {[%clk 0:00:03.3]} 78. Kg8 {[%clk 0:00:06.7]} 78... Rg1 {[%clk 0:00:03.9]}
79. g7 {[%clk 0:00:07.4]} 79... Rg2 {[%clk 0:00:03.6]} 80. Rh3 {[%clk
0:00:07.7]} 80... Rg1 {[%clk 0:00:03.6]} 81. Kh8 {[%clk 0:00:08.3]} 81... Kf7
{[%clk 0:00:03.2]} 82. Rf3+ {[%clk 0:00:08.9]} 82... Ke7 {[%clk 0:00:03.3]} 83.
g8=Q {[%clk 0:00:09.8]} 83... Rxg8+ {[%clk 0:00:02.5]} 84. Kxg8 {[%clk
0:00:10.2]} 1-0

[Event "Early-Titled-Tuesday-Blitz-January-30-2024"]
[Site "Chess.com"]
[Date "2024.01.30"]
[Round "6"]
[White "hsd2016"]
[Black "SahibSinghKnight"]
[Result "0-1"]
[WhiteElo "2321"]
[BlackElo "2660"]
[TimeControl "180+1"]
[EndTime "9:10:29 PST"]
[Termination "SahibSinghKnight won by resignation"]

1. e4 {[%clk 0:03:00.9]} 1... e6 {[%clk 0:02:57.8]} 2. d4 {[%clk 0:02:57.6]}
2... d5 {[%clk 0:02:56.3]} 3. Nd2 {[%clk 0:02:58.5]} 3... c5 {[%clk 0:02:54.8]}
4. Ngf3 {[%clk 0:02:57.2]} 4... cxd4 {[%clk 0:02:52.8]} 5. Nxd4 {[%clk 0:02:57]}
5... Nc6 {[%clk 0:02:43.4]} 6. Bb5 {[%clk 0:02:56.4]} 6... Bd7 {[%clk 0:02:34]}
7. Nxc6 {[%clk 0:02:44.6]} 7... bxc6 {[%clk 0:02:33.1]} 8. Bd3 {[%clk
0:02:43.4]} 8... Qc7 {[%clk 0:02:28.4]} 9. Qe2 {[%clk 0:02:41.7]} 9... Bd6
{[%clk 0:02:20.8]} 10. O-O {[%clk 0:02:40.6]} 10... Bxh2+ {[%clk 0:02:17.1]} 11.
Kh1 {[%clk 0:02:38]} 11... Bd6 {[%clk 0:02:12.9]} 12. c4 {[%clk 0:02:35.5]}
12... Ne7 {[%clk 0:01:59.7]} 13. exd5 {[%clk 0:02:27.3]} 13... cxd5 {[%clk
0:01:57.2]} 14. cxd5 {[%clk 0:02:24.8]} 14... Nxd5 {[%clk 0:01:51.4]} 15. Ne4
{[%clk 0:02:22.4]} 15... Bf4 {[%clk 0:01:45.1]} 16. Rd1 {[%clk 0:01:05.2]} 16...
O-O {[%clk 0:01:20.8]} 17. Bc4 {[%clk 0:00:50.3]} 17... Bxc1 {[%clk 0:00:50]}
18. Raxc1 {[%clk 0:00:51.2]} 18... Qf4 {[%clk 0:00:25]} 19. Bxd5 {[%clk
0:00:04.9]} 19... exd5 {[%clk 0:00:24.6]} 20. Ng3 {[%clk 0:00:05.6]} 20... Bg4
{[%clk 0:00:22.7]} 21. f3 {[%clk 0:00:02.8]} 21... Qxg3 {[%clk 0:00:19.4]} 22.
fxg4 {[%clk 0:00:02.7]} 22... Rfe8 {[%clk 0:00:19.4]} 23. Qf3 {[%clk 0:00:03.3]}
23... Qh4+ {[%clk 0:00:18.9]} 24. Kg1 {[%clk 0:00:03.3]} 24... d4 {[%clk
0:00:13.3]} 25. Rxd4 {[%clk 0:00:03.4]} 25... Rab8 {[%clk 0:00:11.5]} 26. b3
{[%clk 0:00:03.1]} 26... Qg5 {[%clk 0:00:10.8]} 27. Rcd1 {[%clk 0:00:03]} 27...
Qa5 {[%clk 0:00:10.6]} 28. a4 {[%clk 0:00:02.3]} 28... Qb6 {[%clk 0:00:10.5]}
29. Kh1 {[%clk 0:00:02.3]} 29... Qxb3 {[%clk 0:00:09.9]} 30. Qxb3 {[%clk
0:00:01.5]} 30... Rxb3 {[%clk 0:00:10.8]} 31. Rd8 {[%clk 0:00:02.4]} 31... Kf8
{[%clk 0:00:10.4]} 32. R8d7 {[%clk 0:00:02.9]} 32... a6 {[%clk 0:00:06.7]} 33.
R7d6 {[%clk 0:00:03.1]} 33... Rb4 {[%clk 0:00:06.5]} 34. Rxa6 {[%clk 0:00:03]}
34... Rxg4 {[%clk 0:00:07.1]} 35. Rad6 {[%clk 0:00:03.2]} 35... Rxa4 {[%clk
0:00:06.2]} 36. Rd7 {[%clk 0:00:03.8]} 36... Rh4+ {[%clk 0:00:06.4]} 37. Kg1
{[%clk 0:00:03.1]} 37... Rf4 {[%clk 0:00:07]} 38. R1d3 {[%clk 0:00:03.2]} 38...
Rf6 {[%clk 0:00:07.3]} 39. Rg3 {[%clk 0:00:03]} 39... h6 {[%clk 0:00:06.8]} 40.
Rh3 {[%clk 0:00:02.2]} 40... g5 {[%clk 0:00:06.9]} 41. Rhd3 {[%clk 0:00:02.8]}
41... Kg7 {[%clk 0:00:07.1]} 42. g3 {[%clk 0:00:03]} 42... Kg6 {[%clk
0:00:07.2]} 43. Kg2 {[%clk 0:00:03.5]} 43... Re2+ {[%clk 0:00:06.7]} 44. Kh3
{[%clk 0:00:04.2]} 44... h5 {[%clk 0:00:06.6]} 45. Rd2 {[%clk 0:00:02.1]} 45...
Rxd2 {[%clk 0:00:07]} 46. Rxd2 {[%clk 0:00:02.3]} 46... Re6 {[%clk 0:00:07.5]}
47. Kg2 {[%clk 0:00:02.4]} 47... f6 {[%clk 0:00:06.6]} 48. Kf3 {[%clk
0:00:02.4]} 48... Re5 {[%clk 0:00:07.3]} 49. Rd3 {[%clk 0:00:01.9]} 49... Kf5
{[%clk 0:00:07.7]} 50. Rd7 {[%clk 0:00:02.3]} 50... g4+ {[%clk 0:00:07.4]} 51.
Kf2 {[%clk 0:00:02.9]} 51... Ra5 {[%clk 0:00:07.3]} 52. Rh7 {[%clk 0:00:03]}
52... Ke4 {[%clk 0:00:06.8]} 53. Re7+ {[%clk 0:00:02.6]} 53... Re5 {[%clk
0:00:07.4]} 54. Ra7 {[%clk 0:00:02.3]} 54... Rf5+ {[%clk 0:00:07.9]} 55. Kg2
{[%clk 0:00:01.9]} 55... Rd5 {[%clk 0:00:04.7]} 56. Ra4+ {[%clk 0:00:01.7]}
56... Ke3 {[%clk 0:00:04.8]} 57. Ra6 {[%clk 0:00:02.5]} 57... Rd2+ {[%clk
0:00:04.8]} 58. Kf1 {[%clk 0:00:03]} 58... Rf2+ {[%clk 0:00:05]} 59. Kg1 {[%clk
0:00:03]} 59... Rf3 {[%clk 0:00:05.5]} 60. Ra3+ {[%clk 0:00:02.8]} 60... Ke2
{[%clk 0:00:05.5]} 61. Ra2+ {[%clk 0:00:03]} 61... Kd1 {[%clk 0:00:05.5]} 62.
Kg2 {[%clk 0:00:03.3]} 62... Ke1 {[%clk 0:00:06]} 63. Ra1+ {[%clk 0:00:03.4]}
63... Ke2 {[%clk 0:00:06.4]} 64. Ra2+ {[%clk 0:00:04.3]} 64... Ke3 {[%clk
0:00:06.9]} 65. Ra3+ {[%clk 0:00:05]} 65... Ke4 {[%clk 0:00:07.3]} 66. Ra4+
{[%clk 0:00:05.4]} 66... Kf5 {[%clk 0:00:07.2]} 67. Ra5+ {[%clk 0:00:06]} 67...
Kg6 {[%clk 0:00:07.8]} 68. Rb5 {[%clk 0:00:06.7]} 68... f5 {[%clk 0:00:08.1]}
69. Rb6+ {[%clk 0:00:07.1]} 69... Kg5 {[%clk 0:00:08.5]} 70. Rb5 {[%clk
0:00:07.4]} 70... h4 {[%clk 0:00:07.8]} 71. gxh4+ {[%clk 0:00:08.1]} 71... Kxh4
{[%clk 0:00:08.7]} 72. Rd5 {[%clk 0:00:08.2]} 72... f4 {[%clk 0:00:08.4]} 73.
Rf5 {[%clk 0:00:08.1]} 73... Rg3+ {[%clk 0:00:08.4]} 74. Kf2 {[%clk 0:00:08.5]}
74... f3 {[%clk 0:00:08.8]} 75. Rf8 {[%clk 0:00:07.8]} 75... Rg2+ {[%clk
0:00:09.2]} 76. Kf1 {[%clk 0:00:07.8]} 76... Kg3 {[%clk 0:00:09.5]} 77. Rb8
{[%clk 0:00:07]} 77... Rh2 {[%clk 0:00:09.9]} 78. Kg1 {[%clk 0:00:06.5]} 78...
f2+ {[%clk 0:00:09.8]} 79. Kf1 {[%clk 0:00:07.2]} 79... Rh1+ {[%clk 0:00:10.2]}
80. Ke2 {[%clk 0:00:07.9]} 80... f1=Q+ {[%clk 0:00:10.4]} 0-1